[Event "Late-Titled-Tuesday-Blitz-September-19-2023"]
[Site "Chess.com"]
[Date "2023.09.19"]
[Round "5"]
[White "Arimin1329"]
[Black "pirulillo"]
[Result "0-1"]
[WhiteElo "2263"]
[BlackElo "2382"]
[TimeControl "180+1"]
[EndTime "14:54:54 PDT"]
[Termination "pirulillo won by resignation"]

1. Nf3 {[%clk 0:03:00.2]} 1... Nf6 {[%clk 0:02:59.6]} 2. b3 {[%clk 0:02:59.8]}
2... g6 {[%clk 0:02:59.5]} 3. Bb2 {[%clk 0:03:00.4]} 3... Bg7 {[%clk 0:03:00]}
4. d4 {[%clk 0:03:00.8]} 4... O-O {[%clk 0:03:00.1]} 5. Nbd2 {[%clk 0:03:01.4]}
5... d5 {[%clk 0:02:59.1]} 6. e3 {[%clk 0:03:01.7]} 6... Nbd7 {[%clk 0:02:55.1]}
7. Be2 {[%clk 0:03:02.1]} 7... c5 {[%clk 0:02:51]} 8. O-O {[%clk 0:03:03]} 8...
Qc7 {[%clk 0:02:47.4]} 9. c4 {[%clk 0:03:01.5]} 9... dxc4 {[%clk 0:02:35.8]} 10.
Nxc4 {[%clk 0:03:01.1]} 10... b6 {[%clk 0:02:22.5]} 11. Rc1 {[%clk 0:03:00.9]}
11... Bb7 {[%clk 0:02:21.4]} 12. dxc5 {[%clk 0:03:00.8]} 12... Nxc5 {[%clk
0:02:11.2]} 13. Be5 {[%clk 0:02:32]} 13... Qd8 {[%clk 0:02:05.1]} 14. Qc2 {[%clk
0:02:26.2]} 14... Nfd7 {[%clk 0:01:34.1]} 15. Bxg7 {[%clk 0:02:23]} 15... Kxg7
{[%clk 0:01:35]} 16. Rfd1 {[%clk 0:02:22.9]} 16... Qc7 {[%clk 0:01:23.8]} 17. b4
{[%clk 0:02:17]} 17... Ne4 {[%clk 0:01:20.4]} 18. Qb2+ {[%clk 0:02:11.4]} 18...
Ndf6 {[%clk 0:01:16.6]} 19. Na5 {[%clk 0:01:38.9]} 19... Qb8 {[%clk 0:01:13.4]}
20. Nxb7 {[%clk 0:01:39]} 20... Qxb7 {[%clk 0:01:13.7]} 21. Nd4 {[%clk
0:01:33.2]} 21... Rac8 {[%clk 0:01:11.3]} 22. Bf3 {[%clk 0:01:31.9]} 22... Rxc1
{[%clk 0:01:04.9]} 23. Rxc1 {[%clk 0:01:32.8]} 23... e5 {[%clk 0:00:45.9]} 24.
Nc6 {[%clk 0:01:28]} 24... Rc8 {[%clk 0:00:45.4]} 25. b5 {[%clk 0:01:19.3]}
25... Nd6 {[%clk 0:00:34.9]} 26. Nxe5 {[%clk 0:01:11.1]} 26... Rxc1+ {[%clk
0:00:34.1]} 27. Qxc1 {[%clk 0:01:12]} 27... Qe7 {[%clk 0:00:33.5]} 28. Qb2
{[%clk 0:01:09.1]} 28... Kg8 {[%clk 0:00:29.5]} 29. a4 {[%clk 0:01:08.3]} 29...
Nfe4 {[%clk 0:00:21.2]} 30. Qd4 {[%clk 0:01:03.7]} 30... f5 {[%clk 0:00:18.4]}
31. Nc6 {[%clk 0:01:00.7]} 31... Qg7 {[%clk 0:00:17.1]} 32. Qxg7+ {[%clk
0:00:58.7]} 32... Kxg7 {[%clk 0:00:18]} 33. Bxe4 {[%clk 0:00:59]} 33... Nxe4
{[%clk 0:00:17.3]} 34. Nxa7 {[%clk 0:00:58.1]} 34... Nc5 {[%clk 0:00:17.9]} 35.
Nc8 {[%clk 0:00:51.3]} 35... Nxa4 {[%clk 0:00:16]} 36. Kf1 {[%clk 0:00:51.8]}
36... Kf6 {[%clk 0:00:12.6]} 37. Ke2 {[%clk 0:00:52.3]} 37... Ke6 {[%clk
0:00:12.8]} 38. Na7 {[%clk 0:00:48.6]} 38... Kd5 {[%clk 0:00:12]} 39. Nc6 {[%clk
0:00:48.1]} 39... Kc5 {[%clk 0:00:09.9]} 40. Nd4 {[%clk 0:00:47.7]} 40... Nc3+
{[%clk 0:00:10]} 41. Kd3 {[%clk 0:00:47.8]} 41... Nxb5 {[%clk 0:00:10.9]} 42.
Ne6+ {[%clk 0:00:48]} 42... Kd6 {[%clk 0:00:10.9]} 43. Nf8 {[%clk 0:00:48.9]}
43... Nc7 {[%clk 0:00:11.1]} 44. Nxh7 {[%clk 0:00:48.8]} 44... b5 {[%clk
0:00:12]} 45. Ng5 {[%clk 0:00:43.1]} 45... Kd5 {[%clk 0:00:10.5]} 46. Nf3 {[%clk
0:00:42.7]} 46... b4 {[%clk 0:00:09.8]} 47. Nd4 {[%clk 0:00:42.8]} 47... Na6
{[%clk 0:00:09.6]} 48. h4 {[%clk 0:00:37.6]} 48... Nc5+ {[%clk 0:00:10.5]} 49.
Kc2 {[%clk 0:00:37.4]} 49... Kc4 {[%clk 0:00:11.4]} 50. f3 {[%clk 0:00:35.3]}
50... b3+ {[%clk 0:00:11.2]} 51. Kd2 {[%clk 0:00:33.7]} 51... Kb4 {[%clk
0:00:09.7]} 52. g4 {[%clk 0:00:33.7]} 52... fxg4 {[%clk 0:00:06.3]} 53. fxg4
{[%clk 0:00:34.6]} 53... Ka3 {[%clk 0:00:06.6]} 54. h5 {[%clk 0:00:31.7]} 54...
gxh5 {[%clk 0:00:07.2]} 55. gxh5 {[%clk 0:00:32.6]} 55... b2 {[%clk 0:00:07]}
56. Nb5+ {[%clk 0:00:31.7]} 56... Ka2 {[%clk 0:00:07.2]} 57. Nc3+ {[%clk
0:00:32.1]} 57... Ka1 {[%clk 0:00:07.7]} 58. h6 {[%clk 0:00:32.3]} 58... Ne4+
{[%clk 0:00:07.7]} 59. Kd3 {[%clk 0:00:28.9]} 59... Nxc3 {[%clk 0:00:06.8]} 60.
h7 {[%clk 0:00:29.7]} 60... b1=Q+ {[%clk 0:00:07]} 61. Kxc3 {[%clk 0:00:28.2]}
61... Qxh7 {[%clk 0:00:07.2]} 0-1

[Event "Late-Titled-Tuesday-Blitz-September-19-2023"]
[Site "Chess.com"]
[Date "2023.09.19"]
[Round "5"]
[White "Arteler"]
[Black "JoakimVonAnd"]
[Result "0-1"]
[WhiteElo "2547"]
[BlackElo "2724"]
[TimeControl "180+1"]
[EndTime "14:54:58 PDT"]
[Termination "JoakimVonAnd won by resignation"]

1. e4 {[%clk 0:03:00.9]} 1... c5 {[%clk 0:02:57.6]} 2. Nf3 {[%clk 0:03:01]} 2...
d6 {[%clk 0:02:58.1]} 3. Bb5+ {[%clk 0:03:00.8]} 3... Bd7 {[%clk 0:02:56.6]} 4.
Bxd7+ {[%clk 0:03:01.2]} 4... Nxd7 {[%clk 0:02:57.5]} 5. O-O {[%clk 0:03:01.5]}
5... Ngf6 {[%clk 0:02:58.1]} 6. Re1 {[%clk 0:02:58.1]} 6... e6 {[%clk
0:02:57.1]} 7. d4 {[%clk 0:02:55.7]} 7... cxd4 {[%clk 0:02:55.8]} 8. Qxd4 {[%clk
0:02:55.9]} 8... Be7 {[%clk 0:02:54.4]} 9. c4 {[%clk 0:02:56.3]} 9... O-O {[%clk
0:02:52.2]} 10. Nc3 {[%clk 0:02:56.6]} 10... Qb6 {[%clk 0:02:52.1]} 11. b3
{[%clk 0:02:51.8]} 11... Qxd4 {[%clk 0:02:47.8]} 12. Nxd4 {[%clk 0:02:52.7]}
12... a6 {[%clk 0:02:48.1]} 13. Ba3 {[%clk 0:02:29.8]} 13... Rfc8 {[%clk
0:02:44.5]} 14. Rac1 {[%clk 0:02:11.7]} 14... Kf8 {[%clk 0:02:42.7]} 15. Red1
{[%clk 0:02:11.8]} 15... Nc5 {[%clk 0:02:29.9]} 16. Bxc5 {[%clk 0:02:06.9]}
16... Rxc5 {[%clk 0:02:28.1]} 17. Na4 {[%clk 0:02:07.1]} 17... Rc7 {[%clk
0:02:25.9]} 18. Nb6 {[%clk 0:02:07.4]} 18... Rd8 {[%clk 0:02:25.5]} 19. f3
{[%clk 0:02:03.5]} 19... d5 {[%clk 0:01:57.9]} 20. exd5 {[%clk 0:01:38.5]} 20...
exd5 {[%clk 0:01:54.1]} 21. Nxd5 {[%clk 0:01:26.2]} 21... Rcd7 {[%clk
0:01:21.5]} 22. Nxe7 {[%clk 0:01:08.6]} 22... Rxd4 {[%clk 0:01:21]} 23. Rxd4
{[%clk 0:01:07.9]} 23... Rxd4 {[%clk 0:01:21.9]} 24. Nf5 {[%clk 0:01:05.8]}
24... Rd2 {[%clk 0:01:22.5]} 25. c5 {[%clk 0:01:05.2]} 25... g6 {[%clk
0:01:22.9]} 26. Nd6 {[%clk 0:01:02.4]} 26... Rxa2 {[%clk 0:00:26.1]} 27. Nxb7
{[%clk 0:01:02.5]} 27... Ne8 {[%clk 0:00:26.6]} 28. Rd1 {[%clk 0:00:52.9]} 28...
Rb2 {[%clk 0:00:19.9]} 29. b4 {[%clk 0:00:53.4]} 29... Rxb4 {[%clk 0:00:19.7]}
30. Nd6 {[%clk 0:00:48.1]} 30... Nc7 {[%clk 0:00:17.9]} 31. Nxf7 {[%clk
0:00:44.1]} 31... Ne6 {[%clk 0:00:16.5]} 32. Rd7 {[%clk 0:00:39.3]} 32... Nxc5
{[%clk 0:00:16.2]} 33. Rc7 {[%clk 0:00:39.3]} 33... Ne6 {[%clk 0:00:16.4]} 34.
Ra7 {[%clk 0:00:38.6]} 34... Nf4 {[%clk 0:00:16.1]} 35. Ng5 {[%clk 0:00:35.7]}
35... Rb2 {[%clk 0:00:15.7]} 36. Nxh7+ {[%clk 0:00:35.6]} 36... Ke8 {[%clk
0:00:15.9]} 37. g3 {[%clk 0:00:31.3]} 37... Nh3+ {[%clk 0:00:12.5]} 38. Kh1
{[%clk 0:00:31.8]} 38... Nf2+ {[%clk 0:00:12.9]} 39. Kg2 {[%clk 0:00:29.8]}
39... Ra2 {[%clk 0:00:08.8]} 40. f4 {[%clk 0:00:24.5]} 40... Kd8 {[%clk
0:00:06.5]} 41. Kf3 {[%clk 0:00:22]} 41... Nd3 {[%clk 0:00:06.6]} 42. Nf8 {[%clk
0:00:20.4]} 42... a5 {[%clk 0:00:04.6]} 43. Nxg6 {[%clk 0:00:20.4]} 43... a4
{[%clk 0:00:05.2]} 44. f5 {[%clk 0:00:20.4]} 44... a3 {[%clk 0:00:05.5]} 45. Ke3
{[%clk 0:00:20.6]} 45... Nb4 {[%clk 0:00:05.7]} 46. Kd4 {[%clk 0:00:19.3]} 46...
Nc6+ {[%clk 0:00:05.9]} 47. Ke3 {[%clk 0:00:17.9]} 47... Nxa7 {[%clk 0:00:06.8]}
48. f6 {[%clk 0:00:18.7]} 48... Ke8 {[%clk 0:00:05.5]} 49. Ne5 {[%clk
0:00:15.4]} 49... Nb5 {[%clk 0:00:05.6]} 50. g4 {[%clk 0:00:15.5]} 50... Nd6
{[%clk 0:00:05.3]} 51. g5 {[%clk 0:00:15.5]} 51... Rxh2 {[%clk 0:00:05.5]} 52.
g6 {[%clk 0:00:10.5]} 52... Rg2 {[%clk 0:00:03.9]} 53. Kf3 {[%clk 0:00:10.4]}
53... Rxg6 {[%clk 0:00:03.5]} 54. Nxg6 {[%clk 0:00:11.3]} 54... a2 {[%clk
0:00:03.2]} 0-1

[Event "Late-Titled-Tuesday-Blitz-September-19-2023"]
[Site "Chess.com"]
[Date "2023.09.19"]
[Round "5"]
[White "GiorgianBarbosa"]
[Black "SCIM"]
[Result "0-1"]
[WhiteElo "2449"]
[BlackElo "2570"]
[TimeControl "180+1"]
[EndTime "14:54:58 PDT"]
[Termination "SCIM won by checkmate"]

1. c4 {[%clk 0:02:39.5]} 1... g6 {[%clk 0:02:55.9]} 2. g3 {[%clk 0:02:40.2]}
2... Bg7 {[%clk 0:02:55]} 3. Bg2 {[%clk 0:02:41.1]} 3... c5 {[%clk 0:02:55.3]}
4. Nc3 {[%clk 0:02:42]} 4... Nc6 {[%clk 0:02:55.4]} 5. e3 {[%clk 0:02:41.9]}
5... e6 {[%clk 0:02:54.7]} 6. Nge2 {[%clk 0:02:42.8]} 6... Nge7 {[%clk
0:02:54.1]} 7. d3 {[%clk 0:02:42.8]} 7... O-O {[%clk 0:02:52.8]} 8. O-O {[%clk
0:02:43.2]} 8... b6 {[%clk 0:02:50.9]} 9. b3 {[%clk 0:02:43.3]} 9... Bb7 {[%clk
0:02:49.7]} 10. Bb2 {[%clk 0:02:43.6]} 10... d5 {[%clk 0:02:47.1]} 11. cxd5
{[%clk 0:02:37.8]} 11... exd5 {[%clk 0:02:45.7]} 12. e4 {[%clk 0:02:19.9]} 12...
dxe4 {[%clk 0:02:39.4]} 13. dxe4 {[%clk 0:02:18]} 13... Qxd1 {[%clk 0:02:20.3]}
14. Raxd1 {[%clk 0:02:17.1]} 14... Rad8 {[%clk 0:02:21.2]} 15. Na4 {[%clk
0:02:13.2]} 15... Ba6 {[%clk 0:02:14.1]} 16. Bxg7 {[%clk 0:02:02.6]} 16... Kxg7
{[%clk 0:02:06]} 17. Nac3 {[%clk 0:01:58.4]} 17... Nd4 {[%clk 0:01:56.9]} 18.
Rde1 {[%clk 0:00:49.1]} 18... Nxe2+ {[%clk 0:01:52.5]} 19. Nxe2 {[%clk 0:00:47]}
19... Rd2 {[%clk 0:01:52]} 20. Bf3 {[%clk 0:00:47.1]} 20... Nc6 {[%clk
0:01:48.2]} 21. Rd1 {[%clk 0:00:42.2]} 21... Rfd8 {[%clk 0:01:38.8]} 22. Rxd2
{[%clk 0:00:30.9]} 22... Rxd2 {[%clk 0:01:39.7]} 23. Re1 {[%clk 0:00:31.5]}
23... Ne5 {[%clk 0:01:37.4]} 24. Kg2 {[%clk 0:00:26.6]} 24... Rxa2 {[%clk
0:01:16.4]} 25. Nc3 {[%clk 0:00:23]} 25... Rb2 {[%clk 0:01:11.6]} 26. Ra1 {[%clk
0:00:11.7]} 26... Rxb3 {[%clk 0:01:01.4]} 27. Rxa6 {[%clk 0:00:12]} 27... Rxc3
{[%clk 0:00:58.2]} 28. Be2 {[%clk 0:00:10.5]} 28... Rc2 {[%clk 0:00:56.2]} 29.
Bb5 {[%clk 0:00:09.5]} 29... Rb2 {[%clk 0:00:54.3]} 30. Bf1 {[%clk 0:00:06.7]}
30... c4 {[%clk 0:00:53.9]} 31. Rxa7 {[%clk 0:00:06.9]} 31... b5 {[%clk
0:00:50.6]} 32. Rc7 {[%clk 0:00:06.4]} 32... b4 {[%clk 0:00:44]} 33. h3 {[%clk
0:00:05.2]} 33... c3 {[%clk 0:00:40.2]} 34. g4 {[%clk 0:00:05.4]} 34... g5
{[%clk 0:00:38.3]} 35. Kg3 {[%clk 0:00:05.6]} 35... Rd2 {[%clk 0:00:33.1]} 36.
Bb5 {[%clk 0:00:05.2]} 36... c2 {[%clk 0:00:25.8]} 37. Ba4 {[%clk 0:00:03.1]}
37... b3 {[%clk 0:00:23.4]} 38. Bxb3 {[%clk 0:00:02.8]} 38... Rd3+ {[%clk
0:00:23.6]} 39. Kg2 {[%clk 0:00:03.2]} 39... Rxb3 {[%clk 0:00:23.9]} 40. Rxc2
{[%clk 0:00:03.7]} 40... Nd3 {[%clk 0:00:23.8]} 41. f3 {[%clk 0:00:01.6]} 41...
Nf4+ {[%clk 0:00:24.7]} 42. Kg3 {[%clk 0:00:02.4]} 42... Rb1 {[%clk 0:00:22.4]}
43. h4 {[%clk 0:00:03.2]} 43... h6 {[%clk 0:00:19.3]} 44. hxg5 {[%clk
0:00:04.1]} 44... hxg5 {[%clk 0:00:19.9]} 45. Rc5 {[%clk 0:00:02.6]} 45... Kg6
{[%clk 0:00:18.2]} 46. Rc6+ {[%clk 0:00:02.3]} 46... Kg7 {[%clk 0:00:17.9]} 47.
Rc5 {[%clk 0:00:02.2]} 47... f6 {[%clk 0:00:17.4]} 48. Rc7+ {[%clk 0:00:02]}
48... Kg6 {[%clk 0:00:17.3]} 49. Rc2 {[%clk 0:00:02.9]} 49... Rg1+ {[%clk
0:00:16.8]} 50. Kh2 {[%clk 0:00:03.4]} 50... Rf1 {[%clk 0:00:16.8]} 51. Kg3
{[%clk 0:00:03.9]} 51... Rg1+ {[%clk 0:00:15.6]} 52. Kh2 {[%clk 0:00:03.9]}
52... Ra1 {[%clk 0:00:16.1]} 53. Rc6 {[%clk 0:00:03.8]} 53... Re1 {[%clk
0:00:15.2]} 54. Kg3 {[%clk 0:00:02.7]} 54... Re2 {[%clk 0:00:14.9]} 55. Rb6
{[%clk 0:00:02.5]} 55... Rg2# {[%clk 0:00:14.9]} 0-1

[Event "Late-Titled-Tuesday-Blitz-September-19-2023"]
[Site "Chess.com"]
[Date "2023.09.19"]
[Round "5"]
[White "chessdjw"]
[Black "ChessWarrior7197"]
[Result "1/2-1/2"]
[WhiteElo "2673"]
[BlackElo "3056"]
[TimeControl "180+1"]
[EndTime "14:54:59 PDT"]
[Termination "Game drawn by repetition"]

1. d4 {[%clk 0:03:00.9]} 1... d5 {[%clk 0:02:59.5]} 2. c4 {[%clk 0:03:00.1]}
2... e6 {[%clk 0:03:00]} 3. Nf3 {[%clk 0:03:00.5]} 3... Nf6 {[%clk 0:02:59.8]}
4. g3 {[%clk 0:03:01]} 4... Be7 {[%clk 0:02:56.9]} 5. Bg2 {[%clk 0:03:01.4]}
5... O-O {[%clk 0:02:57.7]} 6. O-O {[%clk 0:03:01.7]} 6... dxc4 {[%clk
0:02:57.2]} 7. Qa4 {[%clk 0:03:01.8]} 7... c6 {[%clk 0:02:57.4]} 8. Qxc4 {[%clk
0:03:01.4]} 8... b5 {[%clk 0:02:58.1]} 9. Qb3 {[%clk 0:02:57.4]} 9... Bb7 {[%clk
0:02:52.4]} 10. Rd1 {[%clk 0:02:48.2]} 10... Nbd7 {[%clk 0:02:52.3]} 11. Ne5
{[%clk 0:02:41.7]} 11... Nxe5 {[%clk 0:02:41]} 12. dxe5 {[%clk 0:02:41.6]} 12...
Nd7 {[%clk 0:02:41.9]} 13. Nc3 {[%clk 0:02:39.7]} 13... Qc7 {[%clk 0:02:37]} 14.
Bf4 {[%clk 0:01:57.4]} 14... a6 {[%clk 0:02:18.6]} 15. Ne4 {[%clk 0:01:45.6]}
15... Nc5 {[%clk 0:01:54.2]} 16. Qc2 {[%clk 0:00:35.1]} 16... Nxe4 {[%clk
0:01:52.7]} 17. Bxe4 {[%clk 0:00:36]} 17... h6 {[%clk 0:01:53.3]} 18. Rd2 {[%clk
0:00:20]} 18... Rfd8 {[%clk 0:01:45.7]} 19. Rad1 {[%clk 0:00:19.8]} 19... Rxd2
{[%clk 0:01:46.3]} 20. Rxd2 {[%clk 0:00:19.8]} 20... Rd8 {[%clk 0:01:41.2]} 21.
Rxd8+ {[%clk 0:00:19.7]} 21... Bxd8 {[%clk 0:01:40.5]} 22. b4 {[%clk 0:00:14.8]}
22... Be7 {[%clk 0:01:40.8]} 23. Qc3 {[%clk 0:00:11.6]} 23... Kf8 {[%clk
0:00:59.7]} 24. h4 {[%clk 0:00:11.2]} 24... g5 {[%clk 0:00:52.1]} 25. hxg5
{[%clk 0:00:11]} 25... hxg5 {[%clk 0:00:53]} 26. Be3 {[%clk 0:00:11.5]} 26...
Ke8 {[%clk 0:00:52.7]} 27. Bc5 {[%clk 0:00:11.8]} 27... Bxc5 {[%clk 0:00:31.1]}
28. Qxc5 {[%clk 0:00:12.7]} 28... Kd7 {[%clk 0:00:31]} 29. Kg2 {[%clk
0:00:12.9]} 29... Qd8 {[%clk 0:00:30.8]} 30. Kf3 {[%clk 0:00:12.2]} 30... Kc7
{[%clk 0:00:27.4]} 31. Kg4 {[%clk 0:00:11.5]} 31... Qd2 {[%clk 0:00:22.1]} 32.
Bf3 {[%clk 0:00:08.7]} 32... Kd7 {[%clk 0:00:17.2]} 33. a3 {[%clk 0:00:08.6]}
33... Qb2 {[%clk 0:00:13.6]} 34. Qd6+ {[%clk 0:00:08.1]} 34... Kc8 {[%clk
0:00:14.2]} 35. Bxc6 {[%clk 0:00:07.2]} 35... Bxc6 {[%clk 0:00:10.7]} 36. Qxc6+
{[%clk 0:00:07.1]} 36... Kd8 {[%clk 0:00:11.6]} 37. Qb6+ {[%clk 0:00:07.2]}
37... Ke8 {[%clk 0:00:11.7]} 38. Qb8+ {[%clk 0:00:07]} 38... Ke7 {[%clk
0:00:12.1]} 39. Qd6+ {[%clk 0:00:07.6]} 39... Ke8 {[%clk 0:00:12.6]} 40. Kxg5
{[%clk 0:00:08.1]} 40... Qxe2 {[%clk 0:00:12.9]} 41. f4 {[%clk 0:00:08.6]} 41...
Qh2 {[%clk 0:00:10]} 42. Qc6+ {[%clk 0:00:07.8]} 42... Ke7 {[%clk 0:00:10.2]}
43. Qc5+ {[%clk 0:00:07.7]} 43... Ke8 {[%clk 0:00:10.6]} 44. Qc8+ {[%clk
0:00:07.7]} 44... Ke7 {[%clk 0:00:11.1]} 45. Qc7+ {[%clk 0:00:07.7]} 45... Kf8
{[%clk 0:00:11.4]} 46. Qd8+ {[%clk 0:00:07.6]} 46... Kg7 {[%clk 0:00:11.9]} 47.
Qf6+ {[%clk 0:00:07.8]} 47... Kg8 {[%clk 0:00:12.5]} 48. Qd8+ {[%clk 0:00:08]}
48... Kh7 {[%clk 0:00:11.4]} 49. Kf6 {[%clk 0:00:06.4]} 49... Qh5 {[%clk
0:00:05.8]} 50. Qf8 {[%clk 0:00:05.6]} 50... Qg6+ {[%clk 0:00:04.7]} 51. Ke7
{[%clk 0:00:06]} 51... Qxg3 {[%clk 0:00:05.6]} 52. Qxf7+ {[%clk 0:00:06.4]}
52... Kh8 {[%clk 0:00:06.5]} 53. Qf6+ {[%clk 0:00:06.3]} 53... Kh7 {[%clk
0:00:06.8]} 54. Kf7 {[%clk 0:00:06.4]} 54... Qg8+ {[%clk 0:00:04.8]} 55. Ke7
{[%clk 0:00:06.6]} 55... Qg3 {[%clk 0:00:05.7]} 56. Qf7+ {[%clk 0:00:06.5]}
56... Kh8 {[%clk 0:00:05.9]} 57. Qf6+ {[%clk 0:00:07]} 57... Kh7 {[%clk
0:00:06.4]} 1/2-1/2

[Event "Late-Titled-Tuesday-Blitz-September-19-2023"]
[Site "Chess.com"]
[Date "2023.09.19"]
[Round "5"]
[White "ukchessbomber"]
[Black "zverr1"]
[Result "1-0"]
[WhiteElo "2698"]
[BlackElo "2511"]
[TimeControl "180+1"]
[EndTime "14:54:59 PDT"]
[Termination "ukchessbomber won by checkmate"]

1. b4 {[%clk 0:02:58.4]} 1... e5 {[%clk 0:02:59.3]} 2. Bb2 {[%clk 0:02:56]} 2...
Bxb4 {[%clk 0:02:56.9]} 3. Bxe5 {[%clk 0:02:55.4]} 3... Nf6 {[%clk 0:02:57.6]}
4. e3 {[%clk 0:02:55.8]} 4... O-O {[%clk 0:02:57.8]} 5. c3 {[%clk 0:02:56.1]}
5... Ba5 {[%clk 0:02:56.8]} 6. Bxf6 {[%clk 0:02:55.3]} 6... Qxf6 {[%clk
0:02:56.4]} 7. g3 {[%clk 0:02:56.2]} 7... d5 {[%clk 0:02:54.5]} 8. Bg2 {[%clk
0:02:56.7]} 8... c6 {[%clk 0:02:55.1]} 9. Ne2 {[%clk 0:02:55.3]} 9... Nd7 {[%clk
0:02:47]} 10. O-O {[%clk 0:02:53.7]} 10... h5 {[%clk 0:02:46.8]} 11. h3 {[%clk
0:02:48.9]} 11... Nc5 {[%clk 0:02:38.6]} 12. d4 {[%clk 0:01:34.2]} 12... Ne4
{[%clk 0:02:36.1]} 13. c4 {[%clk 0:01:34.4]} 13... Bf5 {[%clk 0:02:20.7]} 14.
cxd5 {[%clk 0:01:31]} 14... cxd5 {[%clk 0:02:21.6]} 15. Nf4 {[%clk 0:01:30.7]}
15... Rfd8 {[%clk 0:01:59.6]} 16. Qxh5 {[%clk 0:01:20.2]} 16... g6 {[%clk
0:01:46.7]} 17. Qe2 {[%clk 0:00:55.6]} 17... g5 {[%clk 0:01:30.2]} 18. Nd3
{[%clk 0:00:42.6]} 18... Bc7 {[%clk 0:01:30.7]} 19. Rc1 {[%clk 0:00:32.8]} 19...
Rac8 {[%clk 0:01:25.6]} 20. Nd2 {[%clk 0:00:30.9]} 20... b6 {[%clk 0:01:01.7]}
21. a4 {[%clk 0:00:27.3]} 21... Qd6 {[%clk 0:00:44.1]} 22. Nxe4 {[%clk
0:00:24.4]} 22... dxe4 {[%clk 0:00:42.9]} 23. Ne5 {[%clk 0:00:24.1]} 23... Qe6
{[%clk 0:00:43.1]} 24. Rc6 {[%clk 0:00:18.1]} 24... Rd6 {[%clk 0:00:38.2]} 25.
Rac1 {[%clk 0:00:17.4]} 25... Rxc6 {[%clk 0:00:38.7]} 26. Rxc6 {[%clk
0:00:18.3]} 26... Qb3 {[%clk 0:00:39.2]} 27. Qh5 {[%clk 0:00:14.7]} 27... Bxe5
{[%clk 0:00:34.3]} 28. Qxg5+ {[%clk 0:00:14.8]} 28... Bg7 {[%clk 0:00:32.8]} 29.
Rxc8+ {[%clk 0:00:14.7]} 29... Bxc8 {[%clk 0:00:33.7]} 30. Qd8+ {[%clk
0:00:15.1]} 30... Bf8 {[%clk 0:00:31.5]} 31. Qxc8 {[%clk 0:00:15.7]} 31... Qxa4
{[%clk 0:00:27.4]} 32. Bxe4 {[%clk 0:00:15.9]} 32... Qd1+ {[%clk 0:00:25.5]} 33.
Kg2 {[%clk 0:00:15.7]} 33... Qh5 {[%clk 0:00:26.1]} 34. Qb7 {[%clk 0:00:13.4]}
34... a5 {[%clk 0:00:19]} 35. Qxb6 {[%clk 0:00:12.3]} 35... a4 {[%clk
0:00:19.7]} 36. Qa6 {[%clk 0:00:08.8]} 36... a3 {[%clk 0:00:18.9]} 37. g4 {[%clk
0:00:07.7]} 37... Qg5 {[%clk 0:00:15.8]} 38. Bd3 {[%clk 0:00:07]} 38... Qd5+
{[%clk 0:00:15.7]} 39. Kg1 {[%clk 0:00:04.9]} 39... a2 {[%clk 0:00:15.2]} 40.
Qa4 {[%clk 0:00:03.3]} 40... Qe6 {[%clk 0:00:06.2]} 41. Bf1 {[%clk 0:00:03.1]}
41... Qd5 {[%clk 0:00:04.6]} 42. Bg2 {[%clk 0:00:02.8]} 42... Qe6 {[%clk
0:00:05.2]} 43. d5 {[%clk 0:00:02.9]} 43... Qb6 {[%clk 0:00:03.9]} 44. Qxa2
{[%clk 0:00:03.3]} 44... Qc5 {[%clk 0:00:04.6]} 45. Qe2 {[%clk 0:00:03.9]} 45...
Bd6 {[%clk 0:00:04.8]} 46. f4 {[%clk 0:00:04.3]} 46... Qc1+ {[%clk 0:00:05.2]}
47. Kf2 {[%clk 0:00:04.8]} 47... Qc3 {[%clk 0:00:03.6]} 48. h4 {[%clk
0:00:05.1]} 48... Qb4 {[%clk 0:00:04.2]} 49. h5 {[%clk 0:00:05.5]} 49... Qxf4+
{[%clk 0:00:04.9]} 50. exf4 {[%clk 0:00:05.7]} 50... Bxf4 {[%clk 0:00:05.5]} 51.
Qe8+ {[%clk 0:00:05.6]} 51... Kg7 {[%clk 0:00:05.6]} 52. Qe4 {[%clk 0:00:05.8]}
52... Bh6 {[%clk 0:00:06.5]} 53. d6 {[%clk 0:00:06.1]} 53... f6 {[%clk
0:00:07.4]} 54. d7 {[%clk 0:00:06.3]} 54... Bg5 {[%clk 0:00:08.3]} 55. Qg6+
{[%clk 0:00:06.8]} 55... Kf8 {[%clk 0:00:08.5]} 56. d8=Q# {[%clk 0:00:07.1]} 1-0